bitfinex/quotes_SOLUSD_20240909
["timestamp","ask_amount","ask_price","bid_price","bid_amount"]
[1725867130623,6.3932,128.87,128.81,24.34668621]
[1725867132116,6.3932,128.87,128.83,9.73769027]
[1725867135046,15.8026,128.88,128.85,9.73769027]
[1725867135340,6.5889,128.9,128.85,9.73769027]
[1725867155246,6.5889,128.9,128.83,9.73769027]
[1725867158053,6.5889,128.9,128.83,11.29373302]
[1725867158256,6.5889,128.9,128.85,9.73769027]
[1725867159552,6.5889,128.9,128.84,1.55604275]
[1725867159763,16.0864,128.89,128.83,9.73769027]
[1725867160130,16.0864,128.89,128.83,11.29373302]
[1725867160438,16.0864,128.89,128.83,9.73769027]
[1725867161044,16.0864,128.89,128.83,1.55604275]
[1725867161241,6.1925,128.88,128.82,1.55604275]
[1725867161430,6.1925,128.88,128.83,1.55604275]
[1725867161629,6.1925,128.88,128.82,1.55604275]
[1725867161829,6.1925,128.88,128.83,1.55604275]
[1725867162058,6.1925,128.88,128.82,1.55604275]
[1725867162356,6.1925,128.88,128.83,1.55604275]
[1725867162536,6.1925,128.88,128.82,1.55604275]
[1725867162737,6.1925,128.88,128.83,1.55604275]
[1725867162958,6.1925,128.88,128.82,1.55604275]
[1725867163132,6.1925,128.88,128.83,1.55604275]
[1725867163332,6.1925,128.88,128.82,1.55604275]
[1725867163558,6.1925,128.88,128.83,11.29373302]
[1725867163759,6.1925,128.88,128.83,9.73769027]
[1725867165132,6.1925,128.88,128.83,11.29371461]
[1725867165433,6.1925,128.88,128.83,9.73769027]
[1725867166053,6.1925,128.88,128.83,11.29371461]
[1725867166335,6.1925,128.88,128.85,9.73769027]
[1725867166662,6.1925,128.88,128.81,1.55602434]
[1725867166868,6.1925,128.88,128.85,9.73769027]
[1725867167367,0.831162,128.92,128.87,9.73769027]
[1725867167368,6.4907,128.91,128.87,9.73769027]
[1725867167542,6.4907,128.91,128.88,1.5515701]
[1725867167958,6.4907,128.91,128.87,9.73769027]
[1725867168359,6.4907,128.91,128.89,9.73769027]
[1725867169361,0.831162,128.92,128.89,9.73769027]
[1725867169942,0.831162,128.92,128.9,1.55141325]
[1725867170458,0.831162,128.92,128.89,9.73769027]
[1725867170670,16.0972,128.96,128.91,9.73769027]
[1725867170834,6.5996,128.99,128.88,15.3812]
[1725867170835,6.5996,128.99,128.95,9.73769027]
[1725867172049,6.5996,128.99,128.88,21.7405]
[1725867172259,6.5996,128.99,128.92,9.73769027]
[1725867172842,6.5996,128.99,128.88,26.35139844]
[1725867172843,6.5996,128.99,128.88,23.29558144]
[1725867173041,6.5996,128.99,128.92,9.73769027]
[1725867173973,45.0,128.98,128.9,9.73769027]
[1725867175565,15.5839,128.97,128.9,9.73769027]
[1725867175958,6.518,128.96,128.88,9.73769027]
[1725867177045,6.518,128.96,128.85,15.7742]
[1725867177273,45.0,128.95,128.87,9.73769027]
[1725867182172,6.518,128.96,128.87,9.73769027]
[1725867183891,6.518,128.96,128.85,31.5484]
[1725867184061,16.506,128.94,128.87,9.73769027]
[1725867184253,6.1834,128.93,128.87,9.73769027]
[1725867184794,16.0375,128.92,128.79,273.2394]
[1725867184946,6.2701,128.9,128.79,39.533067]
[1725867185147,6.2701,128.9,128.82,9.73769027]
[1725867185462,6.2701,128.9,128.84,9.73769027]
[1725867188449,6.2701,128.9,128.85,5.04177963]
[1725867192158,6.2701,128.9,128.84,9.73769027]
[1725867192363,6.2701,128.9,128.85,5.04131601]
[1725867193261,6.2701,128.9,128.85,5.04131258]
[1725867194585,6.2701,128.9,128.84,9.73769027]
[1725867194878,6.2701,128.9,128.85,5.04135593]
[1725867195289,6.2701,128.9,128.84,9.73769027]
[1725867195586,6.2701,128.9,128.85,5.04173396]
[1725867195761,6.2701,128.9,128.84,9.73769027]
[1725867195963,6.2701,128.9,128.85,5.0421451]
[1725867196174,6.2701,128.9,128.84,9.73769027]
[1725867196379,6.2701,128.9,128.85,5.04215185]
[1725867196577,6.2701,128.9,128.84,9.73769027]
[1725867196784,6.2701,128.9,128.85,5.04278344]
[1725867196970,6.2701,128.9,128.84,9.73769027]
[1725867197168,6.2701,128.9,128.85,5.04305268]
[1725867197490,6.2701,128.9,128.86,5.04289923]
[1725867198926,6.2701,128.9,128.86,9.73769027]
[1725867199869,6.2701,128.9,128.87,5.04178176]
[1725867200986,6.2701,128.9,128.87,5.04170258]
[1725867201360,6.2701,128.9,128.86,9.73769027]
[1725867201560,6.2701,128.9,128.87,14.77865539]
[1725867201761,6.2701,128.9,128.87,9.73769027]
[1725867202963,6.2701,128.9,128.88,9.73769027]
[1725867203292,16.0375,128.92,128.89,14.77696418]
[1725867203589,16.0375,128.92,128.9,14.77696418]
[1725867203797,16.0375,128.92,128.9,9.73769027]
[1725867204985,16.0375,128.92,128.9,14.77696418]
[1725867205189,16.0375,128.92,128.9,9.73769027]
[1725867206485,16.0375,128.92,128.9,14.77696418]
[1725867206694,16.0375,128.92,128.9,9.73769027]
[1725867207388,3.00030622,129.01,128.9,9.73769027]
[1725867207389,15.0563,128.95,128.91,5.03701823]
[1725867207696,15.0563,128.95,128.92,11.2887471]
[1725867207875,15.0563,128.95,128.93,1.55102758]
[1725867208412,6.2777,128.96,128.93,1.55102758]
[1725867208700,6.2777,128.96,128.92,9.73769027]
[1725867209195,6.2777,128.96,128.88,15.8761]
[1725867209196,16.1932,128.98,128.94,9.73769027]
[1725867209407,16.1932,128.98,128.96,9.73769027]
[1725867210416,6.4768,128.99,128.96,9.73769027]
[1725867210584,16.0032,129.01,128.98,9.73769027]
[1725867215609,16.0032,129.01,128.93,15.9302]
[1725867215907,16.0032,129.01,128.97,9.73769027]
[1725867216515,6.084,129.02,128.97,9.73769027]
[1725867217499,6.084,129.02,128.99,9.73769027]
[1725867217789,6.084,129.02,129.0,1.55021326]
[1725867218596,0.05729617,129.03,129.0,1.55021326]
[1725867218820,0.05729617,129.03,129.01,11.28774061]
[1725867219123,0.05729617,129.03,129.01,9.73769027]
[1725867219784,0.05729617,129.03,129.02,1.54962538]
[1725867219990,0.05729617,129.03,129.01,9.73769027]
[1725867221311,0.05729617,129.03,128.94,22.24]
[1725867221516,0.05729617,129.03,128.97,9.73769027]
[1725867222699,22.32049617,129.03,128.98,1.5501833]
[1725867222891,22.32049617,129.03,128.94,22.24]
[1725867222892,22.32049617,129.03,128.94,15.9694]
[1725867223212,22.32049617,129.03,128.94,25.70709027]
[1725867223409,22.32049617,129.03,128.96,9.73769027]
[1725867224104,22.32049617,129.03,128.95,24.29104143]
[1725867224416,22.32049617,129.03,128.96,45.0]
[1725867227099,22.32049617,129.03,128.95,45.0]
[1725867227292,22.32049617,129.03,128.94,15.9694]
[1725867228903,22.32049617,129.03,128.95,45.0]
[1725867231016,22.32049617,129.03,128.95,69.29104143]
[1725867233430,22.32049617,129.03,128.96,1.55016695]
[1725867234317,22.32049617,129.03,128.95,69.29104143]
[1725867234819,22.32049617,129.03,128.97,24.29104143]
[1725867234999,22.32049617,129.03,128.98,45.0]
[1725867235414,22.32049617,129.03,128.95,24.29104143]
[1725867235725,22.32049617,129.03,128.96,45.0]
[1725867240117,22.32049617,129.03,128.97,1.55003251]
[1725867240323,22.32049617,129.03,128.98,25.84107128]
[1725867240625,22.32049617,129.03,128.98,24.29104143]
[1725867241217,22.32049617,129.03,128.99,1.55001984]
[1725867241738,22.32049617,129.03,128.98,24.29104143]
[1725867241912,0.05729617,129.03,129.0,24.29104143]
[1725867242311,0.05729617,129.03,129.01,1.54976955]
[1725867242517,0.05729617,129.03,129.0,24.29104143]
[1725867242833,0.05729617,129.03,128.99,45.0]
[1725867243011,0.05729617,129.03,128.95,24.29104143]
[1725867243521,6.3877,129.02,128.95,24.29104143]
[1725867243830,22.4244,129.02,128.95,24.29104143]
[1725867244138,22.4244,129.02,128.94,15.9694]
[1725867244636,22.4244,129.02,128.95,24.29104143]
[1725867245518,22.4244,129.02,128.96,45.0]
[1725867247066,0.05729617,129.03,128.99,24.29104143]
[1725867248224,0.05729617,129.03,128.97,24.29104143]
[1725867248422,0.05729617,129.03,128.98,45.0]
[1725867248737,0.05729617,129.03,128.97,24.29104143]
[1725867248738,6.6439,129.01,128.95,24.29104143]
[1725867249040,6.6439,129.01,128.94,1.55448098]
[1725867249237,6.6439,129.01,128.94,21.55448098]
[1725867249741,6.6439,129.01,128.95,24.29104143]
[1725867250036,6.6439,129.01,128.96,45.0]
[1725867251911,6.6439,129.01,128.97,25.84121996]
[1725867252110,6.6439,129.01,128.98,46.55012422]
[1725867252415,6.6439,129.01,128.98,45.0]
[1725867252623,6.6439,129.01,128.99,1.55012738]
[1725867252936,6.6439,129.01,128.98,45.0]
[1725867253507,6.6439,129.01,128.97,24.29104143]
[1725867253709,6.6439,129.01,128.95,25.84549999]
[1725867253914,6.6439,129.01,128.96,45.0]
[1725867254116,6.6439,129.01,128.95,25.84551965]
[1725867254629,6.6439,129.01,128.96,1.55447822]
[1725867255217,6.6439,129.01,128.97,1.55447822]
[1725867255422,6.6439,129.01,128.96,46.55447822]
[1725867255721,6.6439,129.01,128.97,1.55447822]
[1725867255922,6.6439,129.01,128.97,3.10468829]
[1725867256323,6.6439,129.01,128.97,1.55447822]
[1725867256936,6.6439,129.01,128.96,1.55447822]
[1725867257115,6.6439,129.01,128.97,1.55447822]
[1725867257438,6.6439,129.01,128.94,20.0]
[1725867257743,6.6439,129.01,128.96,1.55449443]
[1725867258245,6.6439,129.01,128.97,1.55449443]
[1725867258538,6.6439,129.01,128.96,1.55449443]
[1725867259318,6.6439,129.01,128.93,1.55449443]
[1725867259639,6.3378,128.99,128.94,1.55449443]
[1725867259947,6.3378,128.99,128.95,25.84553586]
[1725867260112,6.3378,128.99,128.96,1.55449443]
[1725867260945,6.3378,128.99,128.95,24.29104143]
[1725867261321,6.3378,128.99,128.96,46.55459949]
[1725867261540,6.3378,128.99,128.96,45.0]
[1725867262045,6.3378,128.99,128.92,16.1638]
[1725867262216,6.3378,128.99,128.93,1.55460217]
[1725867262415,6.3378,128.99,128.94,1.55460217]
[1725867262619,6.3378,128.99,128.92,9.72508472]
[1725867262823,6.3378,128.99,128.93,1.55460217]
[1725867263148,6.3378,128.99,128.94,1.55460217]
[1725867263442,6.3378,128.99,128.93,1.55460217]
[1725867264229,15.1952,128.98,128.93,1.55460217]
[1725867264429,15.1952,128.98,128.91,1.55460217]
[1725867265029,15.1952,128.98,128.9,24.3104635]
[1725867265454,15.1952,128.98,128.92,1.55493295]
[1725867267152,15.1952,128.98,128.91,1.55493295]
[1725867267449,15.1952,128.98,128.92,1.55493295]
[1725867267826,15.1952,128.98,128.93,5.03282219]
[1725867268031,15.1952,128.98,128.94,5.03282219]
[1725867268224,15.1952,128.98,128.95,5.03282219]
[1725867268441,15.1952,128.98,128.92,1.55493295]
[1725867269140,15.1952,128.98,128.91,46.55493295]
[1725867271063,15.1952,128.98,128.91,1.55493295]
[1725867271371,6.0904,128.97,128.9,1.55493295]
[1725867271651,6.0904,128.97,128.88,25.66113551]
[1725867271652,6.0904,128.97,128.89,1.55493295]
[1725867271860,6.0904,128.97,128.88,40.85633551]
[1725867271861,6.0904,128.97,128.9,1.55493295]
[1725867272037,6.0904,128.97,128.88,40.85633551]
[1725867272356,6.0904,128.97,128.9,25.86542725]
[1725867273038,6.0904,128.97,128.9,25.86543471]
[1725867273556,6.0904,128.97,128.91,45.0]
[1725867273745,6.0904,128.97,128.91,46.55497121]
[1725867274366,6.0904,128.97,128.91,1.55497121]
[1725867274935,6.0904,128.97,128.9,24.3104635]
[1725867275135,6.0904,128.97,128.9,25.86543471]
[1725867275353,61.0858,128.96,128.89,1.55497121]
[1725867275566,16.0858,128.96,128.89,1.55497121]
[1725867275737,16.0858,128.96,128.89,1.55507399]
[1725867276440,16.0858,128.96,128.9,24.3104635]
[1725867283163,16.0858,128.96,128.89,1.55498561]
[1725867283337,16.0858,128.96,128.89,21.55498561]
[1725867283745,16.0858,128.96,128.9,24.3104635]
[1725867286241,16.0858,128.96,128.91,9.72525711]
[1725867289064,16.0858,128.96,128.93,9.72525711]
[1725867289256,16.0858,128.96,128.95,9.72525711]
[1725867290067,6.0904,128.97,128.95,9.72525711]
[1725867296871,16.2759,128.99,128.95,9.72525711]
[1725867297076,16.2759,128.99,128.97,9.72525711]
[1725867299972,16.2759,128.99,128.95,9.72525711]
[1725867304351,16.2759,128.99,128.95,11.27996101]
[1725867305991,16.2759,128.99,128.97,9.72525711]
[1725867306352,16.2759,128.99,128.95,9.72525711]
[1725867306559,16.2759,128.99,128.95,1.55471159]
[1725867306973,16.2759,128.99,128.92,19.45051511]
[1725867307680,16.2759,128.99,128.92,9.72525711]
[1725867311856,16.2759,128.99,128.94,9.72525711]
[1725867313464,16.2759,128.99,128.96,9.72525711]
[1725867314304,6.3469,129.0,128.98,9.72525711]
[1725867314584,0.78048217,129.03,128.98,9.72525711]
[1725867314585,15.9808,129.02,128.98,9.72525711]
[1725867314762,15.9808,129.02,129.0,9.72525711]
[1725867317773,0.78048217,129.03,129.0,9.72525711]
[1725867319499,0.78048217,129.03,128.98,9.72525711]
[1725867319800,16.43238217,129.03,128.98,9.72525711]
[1725867319969,16.43238217,129.03,128.96,9.72525711]
[1725867322899,16.43238217,129.03,128.98,9.72525711]
[1725867327776,16.43238217,129.03,129.0,9.72525711]
[1725867328575,0.78048217,129.03,129.01,5.03246938]
[1725867328890,0.78048217,129.03,129.0,9.72525711]
[1725867329072,0.78048217,129.03,129.01,5.03261073]
[1725867329268,0.78048217,129.03,129.0,9.72525711]
[1725867329494,0.78048217,129.03,129.01,5.03249785]
[1725867329689,0.78048217,129.03,129.0,9.72525711]
[1725867329876,0.78048217,129.03,129.01,5.03247098]
[1725867330072,0.78048217,129.03,129.0,9.72525711]
[1725867330276,0.78048217,129.03,129.01,5.03258386]
[1725867330490,0.78048217,129.03,129.0,9.72525711]
[1725867330688,0.78048217,129.03,129.01,5.03246938]
[1725867330987,0.78048217,129.03,129.0,9.72525711]
[1725867333198,0.78048217,129.03,128.97,3.0348595]
[1725867333380,0.78048217,129.03,128.96,16.432382]
[1725867333695,0.78048217,129.03,128.97,9.72525711]
[1725867334690,0.78048217,129.03,128.99,9.72525711]
[1725867337473,0.78048217,129.03,128.97,9.72525711]
[1725867338290,0.78048217,129.03,128.98,45.0]
[1725867338688,0.78048217,129.03,128.99,9.72525711]
[1725867338884,0.78048217,129.03,129.0,45.0]
[1725867339692,0.78048217,129.03,129.01,9.72525711]
[1725867340004,0.78048217,129.03,128.96,16.432382]
[1725867340199,0.78048217,129.03,128.99,9.72525711]
[1725867340501,0.78048217,129.03,129.0,45.0]
[1725867340682,0.78048217,129.03,129.0,9.72525711]
[1725867341304,0.78048217,129.03,128.98,9.72525711]
[1725867342182,0.78048217,129.03,129.0,9.72525711]
[1725867344574,0.78048217,129.03,128.97,45.0]
[1725867344779,0.78048217,129.03,128.98,29.72525711]
[1725867347604,0.78048217,129.03,128.98,20.0]
[1725867347780,0.78048217,129.03,128.99,1.55019807]
[1725867347982,0.78048217,129.03,129.0,9.72525711]
[1725867348487,16.2226,129.02,128.96,16.432382]
[1725867348803,6.3568,129.01,128.95,9.72525711]
[1725867349189,6.3568,129.01,128.94,1.34978216]
[1725867349386,6.3568,129.01,128.97,9.72525711]
[1725867351305,6.3568,129.01,128.94,17.57238216]
[1725867351600,6.3568,129.01,128.96,9.72525711]
[1725867360797,6.3568,129.01,128.95,20.0]
[1725867361009,6.3568,129.01,128.95,29.72525711]
[1725867361207,6.3568,129.01,128.97,9.72525711]
[1725867361884,6.3568,129.01,128.95,20.0]
[1725867362105,6.3568,129.01,128.95,29.72525711]
[1725867362304,16.5839,129.0,128.92,6.90944509]
[1725867362518,16.5839,129.0,128.91,25.94785711]
[1725867362519,6.4158,128.99,128.91,25.94785711]
[1725867362894,6.4158,128.99,128.91,9.72525711]
[1725867363519,15.5004,128.98,128.88,1.35059245]
[1725867363699,6.5021,128.97,128.89,9.72525711]
[1725867364197,6.5021,128.97,128.91,9.72525711]
[1725867366689,6.5021,128.97,128.93,9.72525711]
[1725867366895,6.5021,128.97,128.95,9.72525711]
[1725867367700,15.5004,128.98,128.96,45.0]
[1725867367895,6.5565,129.0,128.97,9.72525711]
[1725867368593,6.5565,129.0,128.91,6.5055]
[1725867368793,6.5565,129.0,128.97,9.72525711]
[1725867368997,6.5565,129.0,128.92,45.0]
[1725867369193,6.5565,129.0,128.95,9.72525711]
[1725867369492,6.5565,129.0,128.94,9.72525711]
[1725867369891,6.5565,129.0,128.96,9.72525711]
[1725867371119,6.5565,129.0,128.91,6.90751098]
[1725867371422,6.5565,129.0,128.96,9.72525711]
[1725867375517,6.5565,129.0,128.98,9.72525711]
[1725867377610,6.5565,129.0,128.94,9.725257]
[1725867377611,6.5565,129.0,128.96,9.72525711]
[1725867378624,6.5565,129.0,128.94,9.725257]
[1725867378931,0.78048217,129.03,128.89,8.82100709]
[1725867378932,6.4528,128.98,128.89,8.82100709]
[1725867379105,6.4528,128.98,128.91,9.72525711]
[1725867381422,6.4528,128.98,128.93,9.72525711]
[1725867382419,6.4528,128.98,128.89,15.8245]
[1725867382726,6.4528,128.98,128.91,9.72525711]
[1725867384224,6.4528,128.98,128.93,9.72525711]
[1725867385822,6.4528,128.98,128.95,9.72525711]
[1725867386136,6.4528,128.98,128.97,9.72525711]
[1725867387726,6.4528,128.98,128.95,9.72525711]
[1725867390729,6.4528,128.98,128.9,74.93209067]
[1725867391031,6.4528,128.98,128.95,9.72525711]
[1725867391211,21.4453,129.02,128.97,9.72525711]
[1725867391528,21.4453,129.02,128.99,9.72525711]
[1725867391726,21.4453,129.02,129.0,5.03251595]
[1725867391932,21.4453,129.02,128.99,9.72525711]
[1725867392136,21.4453,129.02,129.0,5.03108569]
[1725867392306,21.4453,129.02,128.99,9.72525711]
[1725867392508,21.4453,129.02,129.0,5.03102427]
[1725867392725,21.4453,129.02,128.99,9.72525711]
[1725867397862,21.4453,129.02,128.92,15.5534]
[1725867397863,21.4453,129.02,129.01,9.72525711]
[1725867398642,21.4453,129.02,128.92,25.033678]
[1725867398933,21.4453,129.02,129.0,9.72525711]
[1725867402548,0.78048217,129.03,129.0,9.72525711]
[1725867405465,0.78048217,129.03,129.01,9.72525711]
[1725867405952,0.78048217,129.03,128.96,24.52365735]
[1725867406129,0.78048217,129.03,129.0,9.72525711]
[1725867407456,0.78048217,129.03,128.99,9.72525711]
[1725867412333,0.78048217,129.03,128.97,29.72525711]
[1725867413661,0.78048217,129.03,128.99,9.72525711]
[1725867421341,0.78048217,129.03,128.98,9.72525711]
[1725867421545,0.78048217,129.03,128.97,29.72525711]
[1725867423072,0.78048217,129.03,128.99,9.72525711]
[1725867423967,23.0059,129.02,128.94,25.80388811]
[1725867424160,23.0059,129.02,128.97,9.72525711]
[1725867426067,23.0059,129.02,128.99,9.72525711]
[1725867426266,6.65,129.02,129.0,9.72525711]
[1725867426744,6.65,129.02,128.99,9.72525711]
[1725867430569,6.65,129.02,128.99,11.27954486]
[1725867430873,6.65,129.02,128.99,9.72525711]
[1725867431443,6.65,129.02,128.99,11.27954486]
[1725867431647,6.65,129.02,128.99,9.72525711]
[1725867432985,6.65,129.02,128.99,11.27951413]
[1725867433271,6.65,129.02,128.99,9.72525711]
[1725867433459,6.65,129.02,129.0,1.55422629]
[1725867434257,6.65,129.02,129.01,9.72525711]
[1725867435252,6.65,129.02,128.99,11.2794504]
[1725867435453,6.65,129.02,129.0,1.55419329]
[1725867436664,6.65,129.02,128.99,9.72525711]
[1725867437463,6.65,129.02,129.0,1.5541932]
[1725867437660,6.65,129.02,129.01,1.5541932]
[1725867437977,0.78048217,129.03,129.01,1.5541932]
[1725867438170,0.78048217,129.03,128.98,9.72525711]
[1725867438474,0.78048217,129.03,128.99,1.55422326]
[1725867438679,0.78048217,129.03,129.0,1.55422326]
[1725867438878,0.78048217,129.03,129.01,1.55419276]
[1725867439174,0.78048217,129.03,129.0,9.72525711]
[1725867439677,0.78048217,129.03,129.01,1.55416203]
[1725867440078,0.78048217,129.03,129.0,9.72525711]
[1725867441260,0.78048217,129.03,129.01,1.55419276]
[1725867441464,0.78048217,129.03,128.98,9.72525711]
[1725867441672,0.78048217,129.03,128.99,1.55425421]
[1725867441974,0.78048217,129.03,129.0,1.55425421]
[1725867442277,0.78048217,129.03,128.98,9.72525711]
[1725867442479,0.78048217,129.03,128.99,1.55422629]
[1725867442684,0.78048217,129.03,129.0,1.55422629]
[1725867442859,0.78048217,129.03,128.98,9.72525711]
[1725867443552,0.78048217,129.03,129.01,1.55419512]
[1725867443754,0.78048217,129.03,128.98,9.72525711]
[1725867444056,0.78048217,129.03,128.99,1.5541778]
[1725867444364,0.78048217,129.03,129.0,1.5541778]
[1725867444561,0.78048217,129.03,129.01,1.5541778]
[1725867444865,0.78048217,129.03,128.98,9.72525711]
[1725867445064,0.78048217,129.03,128.99,1.55419553]
[1725867445275,0.78048217,129.03,129.0,1.55419553]
[1725867445576,0.78048217,129.03,129.01,1.55419553]
[1725867445870,0.78048217,129.03,128.98,9.72525711]
[1725867446077,0.78048217,129.03,128.99,1.55422625]
[1725867446266,0.78048217,129.03,129.0,1.55422625]
[1725867446650,0.78048217,129.03,128.98,9.72525711]
[1725867446857,0.78048217,129.03,129.01,1.55419271]
[1725867447357,0.78048217,129.03,128.99,1.55419316]
[1725867447863,0.78048217,129.03,129.0,1.55428512]
[1725867448176,0.78048217,129.03,128.98,9.72525711]
[1725867448357,0.78048217,129.03,128.99,1.55425417]
[1725867448562,0.78048217,129.03,129.0,1.55425417]
[1725867448754,0.78048217,129.03,128.98,9.72525711]
[1725867448954,0.78048217,129.03,128.99,3.10444063]
[1725867449150,0.78048217,129.03,129.0,1.55425417]
[1725867449387,0.78048217,129.03,128.98,9.72525711]
[1725867449579,0.78048217,129.03,128.99,1.55424161]
[1725867449762,0.78048217,129.03,129.0,1.55424161]
[1725867449963,0.78048217,129.03,128.98,9.72525711]
[1725867450282,0.78048217,129.03,128.99,1.55425698]
[1725867450587,0.78048217,129.03,129.0,1.55425698]
[1725867450878,0.78048217,129.03,128.98,9.72525711]
[1725867451082,0.78048217,129.03,128.99,1.55422625]
[1725867451267,0.78048217,129.03,129.0,1.55422625]
[1725867451470,0.78048217,129.03,128.98,9.72525711]
[1725867451766,0.78048217,129.03,128.99,1.55425698]
[1725867451967,0.78048217,129.03,129.0,1.55425698]
[1725867452188,0.78048217,129.03,128.98,9.72525711]
[1725867452358,0.78048217,129.03,128.99,1.55425698]
[1725867452559,0.78048217,129.03,129.0,1.55425698]
[1725867452767,0.78048217,129.03,128.98,9.72525711]
[1725867452972,0.78048217,129.03,128.99,6.58591623]
[1725867453172,0.78048217,129.03,129.0,6.58591623]
[1725867453459,0.78048217,129.03,129.01,6.58591623]
[1725867453660,0.78048217,129.03,129.02,5.03165969]
[1725867453873,0.78048217,129.03,129.02,5.030865]
[1725867455762,0.78048217,129.03,129.02,6.58505727]
[1725867456880,0.78048217,129.03,129.02,61.31031438]
[1725867457079,0.78048217,129.03,129.02,81.31031438]
[1725867457493,6.1271,129.08,129.05,9.72525711]
[1725867458199,6.1271,129.08,129.06,6.57769233]
[1725867458376,6.1271,129.08,129.06,1.55348145]
[1725867458778,6.1271,129.08,129.05,9.72525711]
[1725867459485,0.8466108,129.16,129.08,16.1227]
[1725867459697,0.8466108,129.16,129.14,9.72525711]
[1725867461697,0.8466108,129.16,129.13,27.25459404]
[1725867461893,0.8466108,129.16,129.09,27.68932621]
[1725867461894,0.8466108,129.16,129.08,16.1227]
[1725867462082,0.8466108,129.16,129.12,9.72525711]
[1725867466591,0.8466108,129.16,129.14,9.72525711]
[1725867466801,0.8466108,129.16,129.09,20.0]
[1725867467001,0.8466108,129.16,129.13,9.72525711]
[1725867470399,0.8466108,129.16,129.15,9.72525711]
[1725867472113,27.11175278,129.26,129.15,9.72525711]
[1725867472114,16.4888,129.22,129.15,54.72525711]
[1725867472289,16.4888,129.22,129.2,9.72525711]
[1725867479723,16.4888,129.22,129.18,9.72525711]
[1725867479904,15.9888,129.22,129.18,9.72525711]
[1725867482392,15.9888,129.22,129.17,9.72525711]
[1725867482927,6.3924,129.21,129.1,15.2433]
[1725867483225,6.3924,129.21,129.15,9.72525711]
[1725867485415,6.3924,129.21,129.17,9.72525711]
[1725867488121,6.3924,129.21,129.19,9.72525711]
[1725867492327,22.9143,129.27,129.19,9.72525711]
[1725867492511,20.0,129.26,129.19,9.72525711]
[1725867492827,6.4828,129.25,129.19,9.72525711]
[1725867493025,6.4828,129.25,129.15,28.68684123]
[1725867493229,6.4828,129.25,129.18,9.72525711]
[1725867495632,45.0,129.24,129.15,28.68684123]
[1725867495842,45.0,129.24,129.17,9.72525711]
[1725867496019,15.8656,129.23,129.15,13.28074123]
[1725867496225,45.0,129.22,129.15,9.72525711]
[1725867496936,6.6303,129.21,129.15,9.72525711]
[1725867498425,6.6303,129.21,129.17,9.72525711]
[1725867499523,6.6303,129.21,129.19,9.72525711]
[1725867499840,15.8656,129.23,129.19,9.72525711]
[1725867500946,15.8656,129.23,129.18,9.72525711]
[1725867509552,15.8656,129.23,129.16,1.54793692]
[1725867509758,15.8656,129.23,129.19,9.72525711]
[1725867511042,15.8656,129.23,129.15,29.14634123]
[1725867511321,15.8656,129.23,129.18,9.72525711]
[1725867518564,15.8656,129.23,129.19,5.02148434]
[1725867518735,15.8656,129.23,129.2,5.02172969]
[1725867518935,15.8656,129.23,129.21,5.02172969]
[1725867519246,15.8656,129.23,129.18,9.72525711]
[1725867519445,15.8656,129.23,129.19,5.02187878]
[1725867519757,15.8656,129.23,129.2,5.02187878]
[1725867520055,15.8656,129.23,129.21,5.02187878]
[1725867520354,15.8656,129.23,129.18,9.72525711]
[1725867520658,15.8656,129.23,129.19,5.02191638]
[1725867520851,15.8656,129.23,129.2,5.02191638]
[1725867521054,6.0877,129.22,129.21,5.02191638]
[1725867521442,51.0877,129.22,129.14,9.72525711]
[1725867521642,45.0,129.21,129.15,5.02294893]
[1725867521847,45.0,129.21,129.16,5.02294893]
[1725867522156,45.0,129.21,129.17,5.02294893]
[1725867522364,45.0,129.21,129.18,5.02294893]
[1725867522537,45.0,129.21,129.19,5.02294893]
[1725867522738,45.0,129.21,129.2,5.02294893]
[1725867523161,6.0877,129.22,129.2,5.02294893]
[1725867523457,6.0877,129.22,129.17,1.55217497]
[1725867523638,6.0877,129.22,129.18,5.02279096]
[1725867523836,6.0877,129.22,129.16,9.72525711]
[1725867523837,6.0877,129.22,129.19,5.02279096]
[1725867524051,6.0877,129.22,129.2,5.02279096]
[1725867524256,6.0877,129.22,129.17,1.55217453]
[1725867524457,6.0877,129.22,129.18,5.02274533]
[1725867524658,6.0877,129.22,129.19,5.02274533]
[1725867524841,6.0877,129.22,129.2,5.02274533]
[1725867525041,6.0877,129.22,129.16,9.72525711]
[1725867525356,6.0877,129.22,129.18,9.72525711]
[1725867525560,6.0877,129.22,129.19,5.02243292]